[Event "36th Indian-ch U13 Open 2023"]
[Site "Secunderabad"]
[Date "2023.12.04"]
[Round "1.10"]
[White "Adharsh K"]
[Black "Shreyansh Alsisaria"]
[Result "1-0"]
[ECO "B41"]
[WhiteElo "1831"]
[BlackElo "1189"]
[Annotator "NA RC"]
[PlyCount "61"]
[EventDate "2023.12.04"]
[EventType "swiss"]
[EventCountry "IND"]
[SourceTitle "playchess.com"]
[Source "ChessBase"]
[SourceQuality "1"]
[TimeControl "5400+30"]

1. e4 {[%emt 0:00:39]} c5 {[%emt 0:00:42]} 2. Nf3 {[%emt 0:01:01]} e6 {[%emt 0:01:04]} 3. d4 {[%emt 0:00:22]} cxd4 {[%emt 0:01:00]} 4. Nxd4 {[%emt 0:00:14]} a6 {[%emt 0:01:15]} 5. Bd3 {[%emt 0:04:52]} Nf6 {[%emt 0:03:32]} 6. c4 {[%emt 0:01:11]} Nc6 {[%emt 0:04:58]} 7. Nc2 {[%emt 0:05:25]} Bc5 {[%emt 0:03:21]} 8. O-O {[%emt 0:00:51]} O-O {[%emt 0:02:47]} 9. Nc3 {[%emt 0:00:36]} Ne5 {[%emt 0:05:29]} 10. Bf4 {[%emt 0:00:53]} Ng6 {[%emt 0:03:07]} 11. Bg3 {[%emt 0:00:06]} d6 {[%emt 0:02:03]} 12. Qe2 {[%emt 0:00:47]} Bd7 {[%emt 0:02:45]} 13. b4 {[%emt 0:00:21]} Ba7 {[%emt 0:02:01]} 14. Bxd6 {[%emt 0:00:32]} Ne7 {[%emt 0:03:26]} 15. e5 {[%emt 0:01:20]} Ne8 {[%emt 0:02:28]} 16. Ne4 {[%emt 0:01:49]} Bc6 {[%emt 0:01:51]} 17. Rad1 {[%emt 0:00:29]} Nxd6 {[%emt 0:05:13]} 18. exd6 {[%emt 0:05:33]} Ng6 {[%emt 0:07:31]} 19. c5 {[%emt 0:01:21]} Nf4 {[%emt 0:02:49]} 20. Qe3 {[%emt 0:00:41]} Nd5 {[%emt 0:03:13]} 21. Qd2 {[%emt 0:01:22]} Qd7 {[%emt 0:05:27]} 22. Nd4 {[%emt 0:02:24]} Rab8 {[%emt 0:08:31]} 23. Ng5 {[%emt 0:02:18]} h6 {[%emt 0:04:02]} 24. Ngf3 {[%emt 0:00:07]} Ba4 {[%emt 0:03:26]} 25. Rc1 {[%emt 0:00:42]} Qd8 {[%emt 0:02:08]} 26. Ne5 {[%emt 0:01:11]} Rc8 {[%emt 0:02:18]} 27. Bc4 {[%emt 0:02:54]} Nf6 {[%emt 0:01:39]} 28. Nxe6 {[%emt 0:00:44]} fxe6 {[%emt 0:01:15]} 29. Bxe6+ {[%emt 0:00:05]} Kh8 {[%emt 0:00:32]} 30. Ng6+ {[%emt 0:00:11]} Kh7 {[%emt 0:00:39]} 31. Qd3 {[%emt 1:04:59]} 1-0

[Event "36th Indian-ch U13 Open 2023"]
[Site "Secunderabad"]
[Date "2023.12.05"]
[Round "2.1"]
[White "Venkat, Raghav"]
[Black "Adarsh D"]
[Result "1-0"]
[ECO "C54"]
[WhiteElo "2205"]
[BlackElo "1411"]
[Annotator "RC"]
[PlyCount "149"]
[EventDate "2023.12.04"]
[EventType "swiss"]
[EventCountry "IND"]
[SourceTitle "playchess.com"]
[Source "ChessBase"]
[SourceQuality "1"]
[TimeControl "5400+30"]

1. e4 {[%emt 0:00:04]} e5 {[%emt 0:00:15]} 2. Nf3 {[%emt 0:00:06]} Nc6 {[%emt 0:00:21]} 3. Bc4 {[%emt 0:00:15]} Bc5 {[%emt 0:00:26]} 4. c3 {[%emt 0:00:14]} Nf6 {[%emt 0:00:40]} 5. d3 {[%emt 0:00:09]} O-O {[%emt 0:00:57]} 6. O-O {[%emt 0:00:05]} d6 {[%emt 0:01:53]} 7. Re1 {[%emt 0:00:48]} a5 {[%emt 0:04:02]} 8. d4 {[%emt 0:01:59]} Bb6 {[%emt 0:02:05]} 9. h3 {[%emt 0:07:35]} h6 {[%emt 0:08:48]} 10. Be3 {[%emt 0:05:15]} exd4 {[%emt 0:07:06]} 11. cxd4 {[%emt 0:01:30]} d5 {[%emt 0:05:03]} 12. exd5 {[%emt 0:02:11]} Ne7 {[%emt 0:04:20]} 13. Nc3 {[%emt 0:11:15]} Nexd5 {[%emt 0:01:24]} 14. Qb3 {[%emt 0:00:56]} Be6 {[%emt 0:02:15]} 15. Na4 {[%emt 0:01:10]} Re8 {[%emt 0:05:33]} 16. Rad1 {[%emt 0:02:16]} c6 {[%emt 0:05:44]} 17. Nc5 {[%emt 0:04:54]} Bxc5 {[%emt 0:02:27]} 18. dxc5 {[%emt 0:00:09]} Qc7 {[%emt 0:01:19]} 19. Bd4 {[%emt 0:01:33]} a4 {[%emt 0:06:29]} 20. Qa3 {[%emt 0:01:03]} Nd7 {[%emt 0:01:24]} 21. Ne5 {[%emt 0:05:28]} b5 {[%emt 0:10:14]} 22. cxb6 {[%emt 0:04:35]} N7xb6 {[%emt 0:01:19]} 23. Bf1 {[%emt 0:06:01]} f6 {[%emt 0:02:27]} 24. Nc4 {[%emt 0:02:59]} Nxc4 {[%emt 0:02:15]} 25. Bxc4 {[%emt 0:00:09]} Nf4 {[%emt 0:01:38]} 26. Bf1 {[%emt 0:05:27]} Bd5 {[%emt 0:05:45]} 27. Qg3 {[%emt 0:02:57]} Rxe1 {[%emt 0:02:21]} 28. Rxe1 {[%emt 0:01:00]} Ne6 {[%emt 0:00:21]} 29. Qxc7 {[%emt 0:05:07]} Nxc7 {[%emt 0:00:05]} 30. a3 {[%emt 0:01:18]} Ne6 {[%emt 0:00:17]} 31. Bc3 {[%emt 0:01:18]} Kf7 {[%emt 0:00:34]} 32. h4 {[%emt 0:07:07]} Re8 {[%emt 0:02:43]} 33. Be2 {[%emt 0:03:34]} Nf4 {[%emt 0:01:18]} 34. Bf1 {[%emt 0:00:40]} Ng6 {[%emt 0:03:07]} 35. Rxe8 {[%emt 0:01:56]} Kxe8 {[%emt 0:00:04]} 36. g3 {[%emt 0:00:09]} Ne5 {[%emt 0:00:14]} 37. Be2 {[%emt 0:01:37]} Ke7 {[%emt 0:01:30]} 38. Bd1 {[%emt 0:02:42]} Bb3 {[%emt 0:03:41]} 39. Bxb3 {[%emt 0:00:36]} axb3 {[%emt 0:00:04]} 40. Bxe5 {[%emt 0:01:28]} fxe5 {[%emt 0:00:05]} 41. Kf1 {[%emt 0:00:07]} Kd6 {[%emt 0:00:21]} 42. Ke2 {[%emt 0:00:10]} Kd5 {[%emt 0:01:37]} 43. Kd3 {[%emt 0:00:13]} g5 {[%emt 0:00:33]} 44. hxg5 {[%emt 0:00:45]} e4+ {[%emt 0:00:10]} 45. Kc3 {[%emt 0:00:47]} hxg5 {[%emt 0:00:05]} 46. Kxb3 {[%emt 0:01:23]} Kd4 {[%emt 0:00:05]} 47. a4 {[%emt 0:02:41]} Kd3 {[%emt 0:00:05]} 48. a5 {[%emt 0:00:08]} Ke2 {[%emt 0:00:05]} 49. a6 {[%emt 0:00:11]} Kxf2 {[%emt 0:00:04]} 50. a7 {[%emt 0:00:32]} e3 {[%emt 0:00:14]} 51. a8=Q {[%emt 0:01:27]} e2 {[%emt 0:00:08]} 52. Qa7+ {[%emt 0:01:28]} Kf1 {[%emt 0:01:58]} 53. Qf7+ {[%emt 0:00:12]} Kg2 {[%emt 0:00:53]} 54. Qe6 {[%emt 0:01:41]} Kf2 {[%emt 0:00:18]} 55. Qf5+ {[%emt 0:00:21]} Kg2 {[%emt 0:00:22]} 56. Qe4+ {[%emt 0:00:31]} Kf2 {[%emt 0:00:10]} 57. Qd4+ {[%emt 0:00:20]} Kf1 {[%emt 0:00:58]} 58. Qc4 {[%emt 0:00:34]} Kf2 {[%emt 0:00:17]} 59. Qc5+ {[%emt 0:00:23]} Kf1 {[%emt 0:00:23]} 60. Qxc6 {[%emt 0:01:07]} e1=Q {[%emt 0:00:07]} 61. Qh1+ {[%emt 0:00:03]} Kf2 {[%emt 0:00:11]} 62. Qxe1+ {[%emt 0:00:36]} Kxe1 {[%emt 0:00:04]} 63. Kc3 {[%emt 0:00:43]} Kf2 {[%emt 0:00:13]} 64. b4 {[%emt 0:01:11]} Kxg3 {[%emt 0:00:05]} 65. b5 {[%emt 0:00:05]} Kf2 {[%emt 0:00:13]} 66. b6 {[%emt 0:00:04]} g4 {[%emt 0:00:02]} 67. b7 {[%emt 0:00:04]} g3 {[%emt 0:00:02]} 68. b8=Q {[%emt 0:00:07]} g2 {[%emt 0:00:04]} 69. Qf4+ {[%emt 0:00:09]} Ke2 {[%emt 0:00:10]} 70. Qg3 {[%emt 0:00:10]} Kf1 {[%emt 0:00:07]} 71. Qf3+ {[%emt 0:00:05]} Kg1 {[%emt 0:00:06]} 72. Kd2 {[%emt 0:00:12]} Kh2 {[%emt 0:00:04]} 73. Qf2 {[%emt 0:00:17]} Kh1 {[%emt 0:00:06]} 74. Qh4+ {[%emt 0:00:04]} Kg1 {[%emt 0:00:04]} 75. Ke3 {[%emt 0:09:34]} 1-0

[Event "36th Indian-ch U13 Open 2023"]
[Site "Secunderabad"]
[Date "2023.12.05"]
[Round "2.2"]
[White "Aakash G"]
[Black "Paarshva Parmar"]
[Result "1-0"]
[ECO "E38"]
[WhiteElo "1935"]
[BlackElo "1410"]
[Annotator "NA RC"]
[PlyCount "69"]
[EventDate "2023.12.04"]
[EventType "swiss"]
[EventCountry "IND"]
[SourceTitle "playchess.com"]
[Source "ChessBase"]
[SourceQuality "1"]
[TimeControl "5400+30"]

1. d4 {[%emt 0:00:04]} Nf6 {[%emt 0:00:07]} 2. c4 {[%emt 0:00:09]} e6 {[%emt 0:00:04]} 3. Nc3 {[%emt 0:00:06]} Bb4 {[%emt 0:00:16]} 4. Qc2 {[%emt 0:00:09]} c5 {[%emt 0:00:08]} 5. dxc5 {[%emt 0:00:09]} Bxc5 {[%emt 0:00:19]} 6. Bf4 {[%emt 0:00:09]} Nc6 {[%emt 0:00:36]} 7. e3 {[%emt 0:00:14]} O-O {[%emt 0:02:35]} 8. Rd1 {[%emt 0:00:08]} d6 {[%emt 0:02:47]} 9. a3 {[%emt 0:01:18]} a5 {[%emt 0:06:37]} 10. Bxd6 {[%emt 0:04:22]} Bxd6 {[%emt 0:00:08]} 11. c5 {[%emt 0:00:03]} Bxc5 {[%emt 0:18:41]} 12. Rxd8 {[%emt 0:00:14]} Rxd8 {[%emt 1:04:12]} 13. Nf3 {[%emt 0:00:48]} Bd7 {[%emt 0:00:00]} 14. Be2 {[%emt 0:05:08]} Ne7 {[%emt 0:00:00]} 15. O-O {[%emt 0:00:13]} Rac8 {[%emt 0:00:00]} 16. Qb3 {[%emt 0:02:52]} Bc6 {[%emt 0:00:00]} 17. Ne5 {[%emt 0:02:36]} Ned5 {[%emt 0:00:00]} 18. Nxc6 {[%emt 0:04:48]} Rxc6 {[%emt 0:00:00]} 19. Nxd5 {[%emt 0:00:16]} Nxd5 {[%emt 0:00:00]} 20. Bf3 $16 {[%emt 0:01:14]} Rb6 {[%emt 0:00:00]} 21. Qc2 {[%emt 0:00:21]} Rc8 {[%emt 0:00:00]} 22. Rd1 {[%emt 0:03:25]} Rbc6 {[%emt 0:00:00]} 23. Qa4 {[%emt 0:04:12]} Bb6 {[%emt 0:00:00]} 24. g3 {[%emt 0:01:39]} h6 {[%emt 0:00:00]} 25. Qb3 {[%emt 0:01:45]} Ba7 {[%emt 0:00:00]} 26. Qxb7 {[%emt 0:03:53]} Bb6 {[%emt 0:00:00]} 27. Bxd5 {[%emt 0:01:19]} exd5 {[%emt 0:00:00]} 28. Rxd5 {[%emt 0:01:25]} R8c7 {[%emt 0:00:00]} 29. Qa6 {[%emt 0:00:08]} Rf6 {[%emt 0:00:28]} 30. Qd3 {[%emt 0:00:13]} Rc1+ {[%emt 0:00:28]} 31. Kg2 {[%emt 0:00:07]} a4 {[%emt 0:00:23]} 32. Rd6 {[%emt 0:00:09]} Rxd6 {[%emt 0:00:51]} 33. Qxd6 {[%emt 0:00:07]} Bc5 {[%emt 0:00:13]} 34. Qd8+ {[%emt 0:00:22]} Kh7 {[%emt 0:00:06]} 35. Qd2 {[%emt 0:00:03]} 1-0

[Event "36th Indian-ch U13 Open 2023"]
[Site "Secunderabad"]
[Date "2023.12.05"]
[Round "2.3"]
[White "Ivan George E"]
[Black "Kolla Bhaavan"]
[Result "0-1"]
[ECO "B11"]
[WhiteElo "1406"]
[BlackElo "1917"]
[Annotator "NA RC"]
[PlyCount "106"]
[EventDate "2023.12.04"]
[EventType "swiss"]
[EventCountry "IND"]
[SourceTitle "playchess.com"]
[Source "ChessBase"]
[SourceQuality "1"]
[TimeControl "5400+30"]

1. e4 {[%emt 0:00:02]} c6 {[%emt 0:01:28]} 2. Nc3 {[%emt 0:01:13]} d5 {[%emt 0:01:11]} 3. Nf3 {[%emt 0:00:23]} dxe4 {[%emt 0:00:27]} 4. Nxe4 {[%emt 0:00:10]} Nf6 {[%emt 0:00:51]} 5. Qe2 {[%emt 0:00:42]} Nxe4 {[%emt 0:01:17]} 6. Qxe4 {[%emt 0:00:05]} Nd7 {[%emt 0:00:10]} 7. Bc4 {[%emt 0:00:11]} Nf6 {[%emt 0:01:41]} 8. Ne5 {[%emt 0:02:13]} e6 {[%emt 0:00:29]} 9. Qe2 {[%emt 0:00:18]} b5 {[%emt 0:07:38]} 10. Bd3 {[%emt 0:02:18]} Bb7 {[%emt 0:01:43]} 11. a4 {[%emt 0:14:36]} a6 {[%emt 0:15:58]} 12. axb5 $11 {[%emt 0:07:39]} cxb5 {[%emt 0:04:10]} 13. Bxb5+ {[%emt 0:01:56]} axb5 {[%emt 0:00:28]} 14. Qxb5+ {[%emt 0:00:10]} Nd7 {[%emt 0:00:16]} 15. Rxa8 {[%emt 0:00:10]} Bxa8 {[%emt 0:00:14]} 16. Nxd7 {[%emt 0:00:06]} Qxd7 {[%emt 0:00:05]} 17. Qb8+ {[%emt 0:00:04]} Qd8 {[%emt 0:00:04]} 18. Qb5+ {[%emt 0:00:07]} Ke7 {[%emt 0:00:04]} 19. b3 {[%emt 0:00:09]} f6 {[%emt 0:02:45]} 20. O-O {[%emt 0:16:12]} Qd5 {[%emt 0:03:14]} 21. Qb4+ {[%emt 0:03:19]} Kf7 {[%emt 0:00:16]} 22. Qg4 {[%emt 0:00:05]} h5 {[%emt 0:00:10]} 23. Qh3 {[%emt 0:00:26]} Bc5 {[%emt 0:00:41]} 24. c4 {[%emt 0:02:52]} Qf5 {[%emt 0:00:58]} 25. Qxf5 {[%emt 0:01:44]} exf5 {[%emt 0:00:03]} 26. Bb2 {[%emt 0:00:17]} Rd8 {[%emt 0:00:23]} 27. Bc3 {[%emt 0:00:42]} Rb8 {[%emt 0:00:44]} 28. b4 {[%emt 0:03:12]} Bxb4 {[%emt 0:00:25]} 29. Rb1 {[%emt 0:00:48]} Bd6 {[%emt 0:00:07]} 30. Ra1 {[%emt 0:00:19]} Be4 {[%emt 0:01:24]} 31. f3 {[%emt 0:03:53]} Bd3 {[%emt 0:00:22]} 32. g3 {[%emt 0:00:56]} Bxc4 {[%emt 0:01:13]} 33. Ra7+ {[%emt 0:00:28]} Kg6 {[%emt 0:00:36]} 34. Rd7 {[%emt 0:01:22]} Rb1+ {[%emt 0:00:53]} 35. Kg2 {[%emt 0:00:09]} Bc5 {[%emt 0:01:38]} 36. d4 {[%emt 0:00:21]} Rb3 {[%emt 0:00:38]} 37. Be1 {[%emt 0:00:41]} Bb4 {[%emt 0:01:21]} 38. Bxb4 {[%emt 0:00:42]} Rxb4 {[%emt 0:00:06]} 39. d5 {[%emt 0:00:11]} Rb2+ {[%emt 0:00:03]} 40. Kg1 {[%emt 0:00:19]} Be2 {[%emt 0:00:29]} 41. d6 {[%emt 0:00:28]} Bxf3 {[%emt 0:00:15]} 42. Rd8 {[%emt 0:00:20]} Rd2 {[%emt 0:00:11]} 43. h3 {[%emt 0:00:18]} f4 {[%emt 0:00:15]} 44. gxf4 {[%emt 0:00:10]} Kf5 {[%emt 0:00:06]} 45. Rg8 {[%emt 0:00:15]} Kxf4 {[%emt 0:00:35]} 46. Rxg7 {[%emt 0:00:10]} Ke3 {[%emt 0:00:25]} 47. Re7+ {[%emt 0:00:46]} Be4 {[%emt 0:00:07]} 48. d7 {[%emt 0:00:13]} h4 {[%emt 0:00:09]} 49. d8=Q {[%emt 0:00:40]} Rxd8 {[%emt 0:00:10]} 50. Rd7 {[%emt 0:00:11]} Rxd7 {[%emt 0:00:12]} 51. Kh2 {[%emt 0:00:05]} Rd2+ {[%emt 0:01:08]} 52. Kg1 {[%emt 0:01:15]} Rd1+ {[%emt 0:00:03]} 53. Kh2 {[%emt 0:00:06]} Rh1# {[%emt 0:00:04]} 0-1

[Event "36th Indian-ch U13 Open 2023"]
[Site "Secunderabad"]
[Date "2023.12.05"]
[Round "2.4"]
[White "Gaikwad Manas"]
[Black "Shreyas Mishra"]
[Result "1-0"]
[ECO "B15"]
[WhiteElo "1916"]
[BlackElo "1408"]
[Annotator "NA RC"]
[PlyCount "81"]
[EventDate "2023.12.04"]
[EventType "swiss"]
[EventCountry "IND"]
[SourceTitle "playchess.com"]
[Source "ChessBase"]
[SourceQuality "1"]
[TimeControl "5400+30"]

1. e4 {[%emt 0:00:02]} c6 {[%emt 0:00:07]} 2. d4 {[%emt 0:00:24]} d5 {[%emt 0:00:02]} 3. Nd2 {[%emt 0:00:08]} dxe4 {[%emt 0:00:07]} 4. Nxe4 {[%emt 0:00:15]} Nf6 {[%emt 0:00:01]} 5. Nxf6+ {[%emt 0:00:38]} exf6 {[%emt 0:00:02]} 6. c3 {[%emt 0:00:52]} Bd6 {[%emt 0:00:08]} 7. Bd3 {[%emt 0:00:47]} O-O {[%emt 0:00:12]} 8. Qc2 {[%emt 0:00:58]} Re8+ {[%emt 0:00:08]} 9. Ne2 {[%emt 0:00:04]} h5 {[%emt 0:00:08]} 10. Be3 {[%emt 0:01:07]} Nd7 {[%emt 0:00:10]} 11. O-O-O {[%emt 0:00:53]} Nf8 {[%emt 0:00:19]} 12. Kb1 {[%emt 0:00:27]} Be6 {[%emt 0:00:20]} 13. c4 {[%emt 0:00:38]} Rc8 {[%emt 0:00:19]} 14. Nc3 {[%emt 0:03:57]} Ng6 {[%emt 0:00:19]} 15. Ne4 {[%emt 0:22:58]} b5 {[%emt 0:00:24]} 16. c5 {[%emt 0:40:20]} Be7 $11 {[%emt 0:02:42]} (16... Bc7 $15 {is more appropriate.}) 17. d5 {[%emt 0:00:57]} Bxd5 {[%emt 0:27:19]} 18. Nc3 {[%emt 0:00:24]} Bf8 {[%emt 0:07:30]} 19. Nxd5 {[%emt 0:07:23]} cxd5 {[%emt 0:00:15]} 20. Bxb5 {[%emt 0:00:44]} Re7 {[%emt 0:01:11]} 21. Bc4 {[%emt 0:10:21]} Rd7 {[%emt 0:01:05]} 22. Ba6 {[%emt 0:01:18]} Rb8 {[%emt 0:02:11]} 23. Qa4 {[%emt 0:00:37]} Qc7 {[%emt 0:01:14]} 24. c6 {[%emt 0:00:56]} Rb4 {[%emt 0:01:55]} 25. Qc2 {[%emt 0:02:11]} Rd8 {[%emt 0:04:18]} 26. a3 {[%emt 0:00:18]} Re4 {[%emt 0:02:22]} 27. Bb7 {[%emt 0:00:19]} Re6 {[%emt 0:00:42]} 28. b4 {[%emt 0:03:04]} Ne5 {[%emt 0:02:58]} 29. Bf4 {[%emt 0:01:03]} a5 {[%emt 0:01:13]} 30. b5 {[%emt 0:00:24]} d4 {[%emt 0:05:57]} 31. Ka2 {[%emt 0:00:49]} d3 {[%emt 0:05:29]} 32. Rxd3 {[%emt 0:00:07]} Rxd3 {[%emt 0:04:09]} 33. Qxd3 {[%emt 0:00:01]} Qe7 {[%emt 0:01:57]} 34. Qc3 {[%emt 0:01:19]} Qc7 {[%emt 0:03:08]} 35. Rb1 {[%emt 0:00:16]} Re8 {[%emt 0:00:56]} 36. b6 {[%emt 0:00:08]} Qb8 {[%emt 0:01:15]} 37. Bxe5 {[%emt 0:00:32]} fxe5 {[%emt 0:01:32]} 38. Ba6 {[%emt 0:00:02]} Qa8 {[%emt 0:01:08]} 39. b7 {[%emt 0:00:14]} Qxa6 {[%emt 0:00:58]} 40. c7 {[%emt 0:00:08]} Qe6+ {[%emt 0:01:08]} 41. Qb3 {[%emt 0:00:10]} 1-0

[Event "36th Indian-ch U13 Open 2023"]
[Site "Secunderabad"]
[Date "2023.12.05"]
[Round "2.5"]
[White "Bhargava Susanth Saketh M"]
[Black "Sriram Adarsh Uppala"]
[Result "1-0"]
[ECO "B06"]
[WhiteElo "1400"]
[BlackElo "1902"]
[Annotator "NA RC"]
[PlyCount "57"]
[EventDate "2023.12.04"]
[EventType "swiss"]
[EventCountry "IND"]
[SourceTitle "playchess.com"]
[Source "ChessBase"]
[SourceQuality "1"]
[TimeControl "5400+30"]

1. e4 {[%emt 0:00:08]} g6 {[%emt 0:00:18]} 2. d4 {[%emt 0:00:40]} Bg7 {[%emt 0:00:09]} 3. Be3 {[%emt 0:01:07]} c6 {[%emt 0:01:38]} 4. c4 {[%emt 0:04:01]} Qb6 {[%emt 0:02:32]} 5. Qd2 {[%emt 0:02:54]} c5 {[%emt 0:00:47]} 6. Nf3 {[%emt 0:07:22]} Nc6 {[%emt 0:00:15]} 7. e5 {[%emt 0:02:28]} cxd4 {[%emt 0:00:52]} 8. Nxd4 {[%emt 0:00:35]} Bxe5 {[%emt 0:00:10]} 9. Nb3 {[%emt 0:00:37]} Qb4 {[%emt 0:02:04]} 10. Nc3 {[%emt 0:04:08]} Na5 {[%emt 0:00:57]} 11. Bd4 $11 {[%emt 0:08:48]} Nxb3 {[%emt 0:01:59]} 12. axb3 {[%emt 0:00:16]} Bxd4 $1 {[%emt 0:00:11]} 13. Qxd4 {[%emt 0:00:06]} Nf6 {[%emt 0:00:06]} 14. O-O-O {[%emt 0:02:43]} O-O {[%emt 0:05:51]} 15. g4 {[%emt 0:01:31]} Qa5 {[%emt 0:05:04]} 16. Be2 {[%emt 0:07:32]} d6 {[%emt 0:06:03]} 17. Rhg1 {[%emt 0:12:33]} Nd7 {[%emt 0:16:05]} 18. Nd5 {[%emt 0:10:36]} Qd8 {[%emt 0:04:17]} 19. f4 {[%emt 0:02:37]} Nc5 {[%emt 0:03:53]} 20. Rg3 {[%emt 0:01:36]} Be6 {[%emt 0:00:13]} 21. f5 {[%emt 0:04:13]} Bxd5 {[%emt 0:00:21]} 22. Qxd5 {[%emt 0:00:04]} a5 {[%emt 0:04:31]} 23. fxg6 {[%emt 0:02:21]} hxg6 {[%emt 0:00:12]} 24. Rh3 {[%emt 0:01:03]} a4 {[%emt 0:03:03]} 25. Qg5 {[%emt 0:02:55]} axb3 {[%emt 0:25:25]} 26. Qh6 {[%emt 0:01:13]} Nd3+ {[%emt 0:13:05]} 27. Rdxd3 {[%emt 0:00:50]} Ra1+ {[%emt 0:01:14]} 28. Kd2 {[%emt 0:00:09]} Qa5+ {[%emt 0:00:03]} 29. Rc3 {[%emt 0:19:54]} 1-0

[Event "36th Indian-ch U13 Open 2023"]
[Site "Secunderabad"]
[Date "2023.12.05"]
[Round "2.6"]
[White "Sharnarthi Viresh"]
[Black "Shaurya Chaudhry"]
[Result "1-0"]
[ECO "E07"]
[WhiteElo "1850"]
[BlackElo "1403"]
[Annotator "NA RC"]
[PlyCount "61"]
[EventDate "2023.12.04"]
[EventType "swiss"]
[EventCountry "IND"]
[SourceTitle "playchess.com"]
[Source "ChessBase"]
[SourceQuality "1"]
[TimeControl "5400+30"]

1. d4 {[%emt 0:00:02]} Nf6 {[%emt 0:00:05]} 2. Nf3 {[%emt 0:00:05]} e6 {[%emt 0:00:05]} 3. c4 {[%emt 0:00:05]} d5 {[%emt 0:00:06]} 4. g3 {[%emt 0:00:05]} Bb4+ {[%emt 0:01:09]} 5. Bd2 {[%emt 0:00:11]} Be7 {[%emt 0:02:41]} 6. Bg2 {[%emt 0:00:09]} c6 {[%emt 0:00:46]} 7. O-O {[%emt 0:00:48]} O-O {[%emt 0:01:24]} 8. Nc3 {[%emt 0:01:07]} Nbd7 {[%emt 0:01:18]} 9. Bf4 {[%emt 0:00:21]} dxc4 {[%emt 0:01:12] 9...dxc4 is better than 9...Nh5.} 10. a4 {[%emt 0:03:21]} a5 {[%emt 0:00:41]} 11. e4 {[%emt 0:00:12]} Bb4 {[%emt 0:01:10]} 12. Qe2 {[%emt 0:00:37]} Nb6 {[%emt 1:25:53]} 13. Rfd1 {[%emt 0:00:32]} h6 {[%emt 0:00:00]} 14. Ne5 {[%emt 0:02:49]} Qe7 {[%emt 0:00:00]} 15. Nxc4 {[%emt 0:01:37]} Nxc4 {[%emt 0:00:00]} 16. Qxc4 {[%emt 0:00:05]} Rd8 {[%emt 0:00:00]} 17. Na2 {[%emt 0:00:02] [#]} Nh5 $1 $11 {[%emt 0:00:00]} 18. Be3 {[%emt 0:00:15]} Nf6 {[%emt 0:00:00]} 19. Bf4 {[%emt 0:03:31] [#]} Ra6 $146 {[%emt 0:00:00]} ({Predecessor:} 19... Qf8 20. Nxb4 Qxb4 21. Qxb4 axb4 22. Bc7 Re8 23. a5 Nd7 24. Bd6 e5 25. dxe5 Nxe5 26. Bxe5 Rxe5 27. Rd8+ Kh7 28. f4 Re7 {1-0 Antic,D (2470)-Karatzanos,K (1374) Anogia op 2nd 2013 (1)}) 20. Nxb4 {[%emt 0:01:09]} axb4 {[%emt 0:00:00]} 21. Bd2 {[%emt 0:01:27]} Qd7 $18 {[%emt 0:00:00]} (21... b5 $16 22. Bxb4 (22. Qxb4 Qxb4 23. Bxb4 Rxa4 $16) (22. axb5 Rxa1 23. Rxa1 cxb5 $16) 22... Qa7) 22. Bxb4 {[%emt 0:01:46]} e5 {[%emt 0:00:00]} 23. Bc3 {[%emt 0:00:46]} Ne8 {[%emt 0:00:00]} 24. Qc5 {[%emt 0:04:00]} f6 {[%emt 0:00:00]} 25. Bf3 {[%emt 0:01:30]} exd4 {[%emt 0:00:00]} 26. Rxd4 {[%emt 0:00:17]} Qc7 {[%emt 0:00:00]} 27. Rxd8 {[%emt 0:01:09]} Qxd8 {[%emt 0:00:00]} 28. Rd1 {[%emt 0:00:03]} Qc7 {[%emt 0:08:00]} 29. Bh5 {[%emt 0:05:33]} Bd7 {[%emt 0:00:00]} 30. Qe7 {[%emt 0:00:49]} Ra8 {[%emt 0:00:00]} 31. Rxd7 {[%emt 0:00:47]} 1-0

[Event "36th Indian-ch U13 Open 2023"]
[Site "Secunderabad"]
[Date "2023.12.05"]
[Round "2.7"]
[White "Harshdeep Singh"]
[Black "Reyan"]
[Result "0-1"]
[ECO "B20"]
[WhiteElo "1399"]
[BlackElo "1842"]
[Annotator "NA RC"]
[PlyCount "88"]
[EventDate "2023.12.04"]
[EventType "swiss"]
[EventCountry "IND"]
[SourceTitle "playchess.com"]
[Source "ChessBase"]
[SourceQuality "1"]
[TimeControl "5400+30"]

1. e4 {[%emt 0:00:04]} c5 {[%emt 0:00:04]} 2. a3 {[%emt 0:00:10]} Nc6 {[%emt 0:17:02]} 3. b4 {[%emt 0:00:09]} cxb4 {[%emt 0:00:28]} 4. axb4 {[%emt 0:00:02]} Nxb4 {[%emt 0:01:34]} 5. c3 {[%emt 0:00:02]} Nc6 {[%emt 0:00:10]} 6. d4 {[%emt 0:00:03]} d5 {[%emt 0:00:15]} 7. exd5 {[%emt 0:00:02]} Qxd5 {[%emt 0:00:18]} 8. Na3 {[%emt 0:00:02]} Bf5 {[%emt 0:05:59]} 9. Nb5 {[%emt 0:01:09]} Rc8 {[%emt 0:00:27]} 10. Bf4 {[%emt 0:03:16]} e5 {[%emt 0:03:56]} 11. dxe5 {[%emt 0:00:30]} Qxd1+ {[%emt 0:01:38]} 12. Rxd1 {[%emt 0:00:03]} a6 {[%emt 0:00:01]} 13. Nd6+ {[%emt 0:02:25]} Bxd6 {[%emt 0:00:46]} 14. exd6 {[%emt 0:00:02]} Nf6 {[%emt 0:01:37]} 15. Bd3 $17 {[%emt 0:01:45]} (15. f3 $11) 15... Bxd3 {[%emt 0:01:43]} 16. Rxd3 {[%emt 0:00:02]} Kd7 {[%emt 0:00:01]} 17. f3 {[%emt 0:05:32]} Nh5 {[%emt 0:01:39]} 18. Be3 {[%emt 0:09:07]} Ne5 {[%emt 0:02:11]} 19. Rd5 {[%emt 0:01:53]} Ke6 {[%emt 0:00:18]} 20. Rd4 {[%emt 0:02:31]} Rxc3 {[%emt 0:00:47]} 21. Kd2 {[%emt 0:00:07]} Rc6 {[%emt 0:02:01]} 22. Nh3 {[%emt 0:01:02]} h6 {[%emt 0:03:34]} 23. Rb1 {[%emt 0:01:33]} b5 {[%emt 0:00:23]} 24. Ke2 {[%emt 0:03:08]} Rxd6 {[%emt 0:04:41]} 25. g4 {[%emt 0:00:14]} Nf6 {[%emt 0:01:13]} 26. g5 {[%emt 0:00:28]} Nd5 {[%emt 0:05:13]} 27. Ra1 {[%emt 0:02:08]} Nc4 {[%emt 0:02:06]} 28. Bf2 {[%emt 0:01:57]} Rhd8 {[%emt 0:01:15]} 29. gxh6 {[%emt 0:03:14]} gxh6 {[%emt 0:00:42]} 30. Re4+ {[%emt 0:01:08]} Kd7 {[%emt 0:01:28]} 31. Be1 {[%emt 0:01:18]} Re8 {[%emt 0:00:55]} 32. Nf2 {[%emt 0:02:34]} f5 {[%emt 0:08:37]} 33. Rxe8 {[%emt 0:02:15]} Nf4+ {[%emt 0:00:24]} 34. Kf1 {[%emt 0:00:06]} Kxe8 {[%emt 0:00:04]} 35. Bb4 {[%emt 0:01:01]} Ne3+ {[%emt 0:02:57]} 36. Kg1 {[%emt 0:00:04]} Rg6+ {[%emt 0:00:04]} 37. Kh1 {[%emt 0:00:09]} Nc2 {[%emt 0:00:04]} 38. Rb1 {[%emt 0:00:56]} Nxb4 {[%emt 0:01:14]} 39. Rxb4 {[%emt 0:00:02]} Ne2 {[%emt 0:04:43]} 40. Rb1 {[%emt 0:00:29]} Rd6 {[%emt 0:01:26]} 41. Re1 {[%emt 0:01:24]} Re6 {[%emt 0:00:14]} 42. Ra1 {[%emt 0:00:50]} Nf4 {[%emt 0:00:52]} 43. Rc1 {[%emt 0:00:05]} Re2 {[%emt 0:01:05]} 44. Kg1 {[%emt 0:00:09]} Rxf2 {[%emt 0:00:18]} 0-1